bitfinex/quotes_SOLUSD_20241001
["timestamp","ask_amount","ask_price","bid_price","bid_amount"]
[1727761093422,6.4255,155.63,155.59,6.427]
[1727761102626,16.0594,155.68,155.59,6.427]
[1727761102926,6.4251,155.64,155.59,6.427]
[1727761107025,1.60635385,155.67,155.58,12.63961308]
[1727761107232,6.4246,155.66,155.61,6.4262]
[1727761108118,6.4246,155.65,155.61,6.4262]
[1727761110229,1.60616577,155.67,155.6,6.4266]
[1727761110410,6.4247,155.65,155.6,6.4266]
[1727761111827,6.4251,155.64,155.6,6.4266]
[1727761121045,1.60616577,155.67,155.59,16.0671]
[1727761121246,6.4255,155.63,155.59,22.4941]
[1727761121432,6.4255,155.63,155.59,16.0671]
[1727761122946,1.60616577,155.67,155.56,21.4683]
[1727761123160,1.60616577,155.67,155.56,27.8966]
[1727761123161,6.4267,155.61,155.56,27.8966]
[1727761124249,1.60655239,155.65,155.57,6.4279]
[1727761124440,6.4259,155.62,155.57,6.4279]
[1727761126939,6.4259,155.62,155.57,19.06751308]
[1727761127758,16.0612,155.66,155.58,6.4275]
[1727761128058,16.0612,155.66,155.59,1.28514332]
[1727761128059,6.4254,155.64,155.59,1.28514332]
[1727761128550,6.4256,155.63,155.59,1.28514332]
[1727761128957,6.4256,155.63,155.58,19.06711308]
[1727761129157,6.4256,155.63,155.59,1.28515111]
[1727761129359,6.4256,155.63,155.58,19.06711308]
[1727761130241,6.4256,155.63,155.58,6.4275]
[1727761131455,6.4259,155.62,155.57,35.13681308]
[1727761134850,6.4259,155.62,155.57,22.4972]
[1727761137238,6.4259,155.62,155.58,7.80351581]
[1727761137440,6.4259,155.62,155.57,22.4972]
[1727761137743,6.4259,155.62,155.58,7.80323694]
[1727761138073,6.4259,155.62,155.57,22.4972]
[1727761138273,6.4259,155.62,155.58,7.80323434]
[1727761138443,6.4259,155.62,155.57,22.4972]
[1727761138643,6.4259,155.62,155.58,7.80297243]
[1727761138837,6.4259,155.62,155.57,22.4972]
[1727761139038,6.4259,155.62,155.58,7.80297243]
[1727761139336,1.6064412,155.65,155.57,22.4972]
[1727761139551,6.4264,155.61,155.58,7.80271273]
[1727761139764,6.4264,155.61,155.57,22.4972]
[1727761139960,6.4264,155.61,155.58,7.80271691]
[1727761140265,6.4264,155.61,155.57,22.4972]
[1727761140643,6.4264,155.61,155.58,7.80255957]
[1727761140846,6.4259,155.62,155.57,22.4972]
[1727761141060,6.4259,155.62,155.58,7.80256443]
[1727761141268,6.4259,155.62,155.57,22.4972]
[1727761142859,6.4259,155.62,155.57,35.13681308]
[1727761147669,16.0612,155.66,155.57,36.42203652]
[1727761147872,6.4264,155.61,155.58,1.28532422]
[1727761148174,6.4259,155.62,155.58,1.28532422]
[1727761150173,6.4259,155.62,155.57,22.4972]
[1727761152187,6.4264,155.61,155.57,16.0693]
[1727761152359,6.427,155.6,155.55,19.06791308]
[1727761152558,39.840184,155.64,155.54,16.0726]
[1727761152877,6.4276,155.58,155.54,22.5017]
[1727761160697,6.4276,155.58,155.54,16.0726]
[1727761161279,6.428,155.57,155.52,40.98171308]
[1727761161477,6.428,155.57,155.52,6.4299]
[1727761164874,6.428,155.57,155.52,19.06951308]
[1727761167681,1.60699162,155.61,155.52,12.63961308]
[1727761167981,6.4276,155.58,155.53,6.4294]
[1727761168379,16.0653,155.62,155.51,16.0756]
[1727761168380,6.4284,155.56,155.51,16.0756]
[1727761170099,6.4284,155.56,155.51,22.5059]
[1727761180309,6.4292,155.54,155.49,6.4312]
[1727761180524,2.72684111,155.61,155.48,50.88241308]
[1727761180525,6.4297,155.53,155.48,44.6744]
[1727761180812,6.43,155.53,155.47,19.07161308]
[1727761181017,6.4301,155.52,155.47,19.07161308]
[1727761181923,6.4305,155.51,155.46,6.4324]
[1727761182100,6.4305,155.51,155.46,19.07201308]
[1727761182295,6.4305,155.51,155.46,6.4324]
[1727761182499,6.4305,155.51,155.46,19.07201308]
[1727761183225,6.4305,155.51,155.46,6.4324]
[1727761184114,23.776884,155.54,155.45,28.72151308]
[1727761184311,6.4305,155.51,155.46,6.4324]
[1727761185717,6.43,155.52,155.47,6.432]
[1727761187525,1.60777425,155.51,155.47,6.432]
[1727761188021,6.43,155.52,155.47,6.432]
[1727761188225,1.60777609,155.51,155.47,6.432]
[1727761188624,6.43,155.52,155.47,6.432]
[1727761188999,1.60777578,155.51,155.47,6.432]
[1727761189200,6.43,155.52,155.47,6.432]
[1727761190638,6.43,155.52,155.45,28.72151308]
[1727761190923,6.4297,155.53,155.48,6.4316]
[1727761191798,6.4297,155.53,155.48,7.71775269]
[1727761192009,6.4297,155.53,155.48,6.4316]
[1727761195016,6.4297,155.53,155.49,6.4312]
[1727761196223,6.4297,155.53,155.5,1.28604641]
[1727761197722,6.4297,155.53,155.49,6.4312]
[1727761199806,6.4297,155.53,155.5,1.28604488]
[1727761200006,6.4297,155.53,155.49,6.4312]
[1727761200425,6.4297,155.53,155.5,1.2860449]
[1727761200603,6.4296,155.54,155.49,6.4312]
[1727761202503,6.4297,155.53,155.49,6.4312]
[1727761202816,6.4297,155.53,155.48,6.4316]
[1727761203022,6.4293,155.54,155.49,6.4309]
[1727761203609,6.4298,155.53,155.48,6.4316]
[1727761205830,6.4301,155.52,155.47,22.5115]
[1727761206035,23.776884,155.56,155.47,16.0795]
[1727761206212,31.32889924,155.56,155.47,16.0795]
[1727761206417,1.60769591,155.55,155.47,16.0795]
[1727761206910,6.4305,155.51,155.47,16.0795]
[1727761210837,6.4308,155.5,155.46,7.71853465]
[1727761212013,6.4308,155.5,155.46,6.4322]
[1727761212820,6.4308,155.5,155.46,7.71853714]
[1727761213035,6.4308,155.5,155.46,6.4322]
[1727761214414,6.4308,155.5,155.46,7.71853619]
[1727761214914,17.68061854,155.55,155.45,6.4328]
[1727761215114,6.4316,155.49,155.44,45.655]
[1727761215320,1.60814759,155.48,155.44,39.2219]
[1727761215519,6.4325,155.46,155.42,6.4341]
[1727761215730,31.32889924,155.54,155.41,22.5205]
[1727761215731,8.04119819,155.45,155.41,22.5205]
[1727761216040,6.4329,155.45,155.41,16.086]
[1727761218227,6.4329,155.45,155.41,22.5205]
[1727761221239,6.4326,155.46,155.41,22.5205]
[1727761221437,1.60839503,155.45,155.41,22.5205]
[1727761222028,6.4333,155.44,155.4,22.4019]
[1727761222225,1.60849929,155.43,155.39,6.435]
[1727761222740,6.4333,155.44,155.39,6.435]
[1727761225129,6.4333,155.44,155.38,28.72901308]
[1727761225443,6.4333,155.44,155.4,6.4349]
[1727761226116,6.433,155.45,155.4,6.4349]
[1727761227319,6.433,155.45,155.41,1.28682855]
[1727761227655,6.433,155.45,155.41,6.4345]
[1727761228227,6.433,155.45,155.4,19.07451308]
[1727761230435,6.4325,155.46,155.41,7.72119446]
[1727761230634,6.71352005,155.51,155.41,7.72119446]
[1727761230635,6.4321,155.47,155.42,19.07361308]
[1727761230826,6.4321,155.47,155.43,1.28661948]
[1727761231026,6.4321,155.47,155.42,20.3602209]
[1727761235143,6.4321,155.47,155.42,19.07361308]
[1727761238443,1.60828455,155.51,155.43,6.4337]
[1727761238627,1.60815887,155.5,155.43,6.4337]
[1727761239048,6.4321,155.47,155.43,6.4337]
[1727761241045,6.4321,155.47,155.42,35.15831308]
[1727761244442,6.4321,155.47,155.42,22.5187]
[1727761255860,1.60826422,155.51,155.42,22.5187]
[1727761256051,6.4326,155.46,155.42,22.5187]
[1727761258457,6.4317,155.48,155.44,6.4332]
[1727761258659,6.4317,155.48,155.44,1.28646708]
[1727761258881,6.4317,155.48,155.44,6.4333]
[1727761261065,6.4317,155.48,155.43,19.07331308]
[1727761263848,8.04050625,155.47,155.42,22.5188]
[1727761264167,23.776884,155.5,155.42,22.5188]
[1727761264351,6.4326,155.46,155.42,22.5188]
[1727761265551,6.4326,155.46,155.42,16.0847]
[1727761265746,1.60833336,155.45,155.39,16.0883]
[1727761265951,47.40659924,155.5,155.39,22.5236]
[1727761265952,6.4337,155.44,155.39,22.5236]
[1727761266368,1.60859191,155.43,155.39,22.5236]
[1727761266670,1.60859191,155.43,155.39,16.0883]
[1727761266671,8.04249191,155.43,155.39,16.0883]
[1727761266877,6.4339,155.43,155.39,16.0883]
[1727761268955,1.60874455,155.42,155.39,16.0883]
[1727761269150,1.60874455,155.42,155.38,6.4356]
[1727761269351,6.4342,155.42,155.38,6.4356]
[1727761276576,6.4342,155.42,155.37,19.07571308]
[1727761278182,6.4342,155.42,155.37,7.7231647]
[1727761278357,6.4342,155.42,155.37,19.07571308]
[1727761278979,6.4342,155.42,155.37,13.92665725]
[1727761279169,6.4342,155.42,155.38,6.4358]
[1727761280768,6.4346,155.41,155.37,6.4361]
[1727761281061,6.4342,155.42,155.37,7.72316471]
[1727761281261,6.4342,155.42,155.37,6.4361]
[1727761283176,6.4342,155.42,155.37,7.72316114]
[1727761283382,23.776884,155.45,155.38,12.63961308]
[1727761283578,6.4334,155.44,155.39,6.4352]
[1727761283876,6.4334,155.44,155.4,12.63961308]
[1727761284078,6.4334,155.44,155.4,19.07451308]
[1727761287580,56.22624356,155.49,155.41,7.72135266]
[1727761287581,6.4329,155.45,155.41,7.72135266]
[1727761288085,14.42224356,155.49,155.42,28.72441308]
[1727761288283,7.99064356,155.49,155.43,6.4337]
[1727761288483,6.4322,155.47,155.42,35.15851308]
[1727761288781,1.6083064,155.46,155.42,35.15851308]
[1727761288982,1.6083064,155.46,155.41,6.4345]
[1727761289169,6.4329,155.45,155.41,6.4345]
[1727761289369,1.60845359,155.44,155.41,6.4345]
[1727761289765,6.4325,155.46,155.41,6.4345]
[1727761291074,6.4325,155.46,155.41,7.72125794]
[1727761293586,6.4325,155.46,155.41,6.4345]
[1727761301477,6.4325,155.46,155.41,7.7212548]
[1727761307407,6.4325,155.46,155.41,6.4345]
[1727761314817,6.87036037,155.49,155.43,6.4337]
[1727761315014,8.80500127,155.51,155.43,1.28653809]
[1727761315188,6.4317,155.48,155.44,6.4333]
[1727761316104,6.4317,155.48,155.43,7.72013809]
[1727761317506,6.4317,155.48,155.43,29.92773809]
[1727761320614,6.4313,155.49,155.44,6.4329]
[1727761320787,6.4313,155.49,155.45,1.28644284]
[1727761321393,6.4313,155.49,155.45,7.71924284]
[1727761321593,6.4313,155.49,155.45,1.28644284]
[1727761322495,6.4313,155.49,155.44,20.35924761]
[1727761324705,6.4313,155.49,155.44,19.07281308]
[1727761325108,8.0397802,155.48,155.44,19.07281308]
[1727761325407,6.4317,155.48,155.44,6.4332]
[1727761336303,6.4312,155.5,155.45,6.4328]
[1727761336534,6.4312,155.5,155.46,1.28635353]
[1727761337532,6.4312,155.5,155.45,6.4328]
[1727761342058,6.87036037,155.52,155.47,6.432]
[1727761342231,6.87036037,155.52,155.47,29.99102383]
[1727761342232,6.4303,155.52,155.47,29.99102383]
[1727761342433,6.4305,155.51,155.47,29.99102383]
[1727761342854,6.4305,155.51,155.47,23.55902383]
[1727761347445,6.4305,155.51,155.47,22.2728]
[1727761348051,1.60767817,155.55,155.47,22.2728]
[1727761348052,6.4316,155.49,155.47,22.2728]
[1727761348238,7.68425413,155.5,155.43,21.7416]
[1727761348438,1.60808131,155.49,155.43,21.7416]
[1727761348642,6.4324,155.47,155.43,21.7416]
[1727761350952,6.4325,155.46,155.43,21.7416]
[1727761361352,6.4321,155.48,155.44,1.28652679]
[1727761361664,6.4321,155.48,155.44,13.92613987]
[1727761362464,6.4321,155.48,155.44,12.63961308]
[1727761362765,6.4321,155.48,155.45,1.28641206]
[1727761368284,6.4313,155.49,155.44,19.07291308]
[1727761369486,6.4322,155.47,155.43,21.7416]
[1727761370678,6.4322,155.47,155.43,28.1753]
[1727761373883,6.4317,155.48,155.44,13.92602657]
[1727761374088,6.4317,155.48,155.44,12.63961308]
[1727761374567,7.68425413,155.54,155.44,12.63961308]
[1727761374568,6.4314,155.49,155.44,19.07261308]
[1727761375686,6.4318,155.48,155.43,40.81491308]
[1727761376888,6.4321,155.47,155.43,40.81491308]
[1727761387091,6.4321,155.47,155.43,28.1753]
[1727761391396,6.4321,155.47,155.43,21.7416]
[1727761395787,6.4326,155.46,155.43,21.7416]
[1727761400111,6.4329,155.45,155.43,21.7416]
[1727761411501,6.4322,155.47,155.44,1.28663862]
[1727761412110,6.4322,155.47,155.43,23.02813926]
[1727761412312,6.4322,155.47,155.43,29.46183926]
[1727761412492,1.1208982,155.52,155.43,42.10145234]
[1727761412692,6.4317,155.48,155.43,35.66775234]
[1727761412918,6.4317,155.48,155.44,6.4333]
[1727761413087,6.4317,155.48,155.45,1.28639921]
[1727761413993,6.4317,155.48,155.44,1.28640438]
[1727761415915,6.4317,155.48,155.43,34.38121308]
[1727761416122,6.4317,155.48,155.45,1.2863401]
[1727761416421,6.4317,155.48,155.44,6.4333]
[1727761417704,6.4317,155.48,155.45,1.28634219]
[1727761417909,6.4317,155.48,155.44,6.4333]
[1727761419396,6.4325,155.46,155.43,21.7416]
[1727761421519,47.53983813,155.49,155.43,21.7416]
[1727761421698,1.60825229,155.48,155.43,21.7416]
[1727761423337,6.433,155.45,155.43,21.7416]
[1727761424519,16.0787,155.49,155.43,21.7416]
[1727761424708,6.4325,155.46,155.44,1.28654221]
[1727761425128,6.4321,155.47,155.44,1.28654221]
[1727761425506,6.4321,155.47,155.43,21.7416]
[1727761427007,6.4321,155.47,155.43,28.1752]
[1727761436436,6.4321,155.47,155.43,21.7416]
[1727761438631,1.60802949,155.5,155.43,21.7416]
[1727761438837,6.4329,155.45,155.43,21.7416]
[1727761443830,6.4325,155.46,155.43,21.7416]
[1727761444027,6.4325,155.46,155.44,1.28659122]
[1727761444541,6.4325,155.46,155.43,21.7416]
[1727761445133,6.4329,155.45,155.43,21.7416]
[1727761445527,1.6081164,155.49,155.43,21.7416]
[1727761445742,6.4325,155.46,155.43,21.7416]
[1727761453828,1.6081164,155.49,155.43,21.7416]
[1727761454030,6.4329,155.46,155.43,21.7416]
[1727761454659,6.4329,155.46,155.44,22.816]
[1727761454855,1.12092262,155.52,155.5,6.4304]
[1727761455043,6.4291,155.55,155.49,45.3245]
[1727761455229,6.4291,155.55,155.49,57.96411308]
[1727761456932,6.4291,155.55,155.5,7.71673342]
[1727761457853,6.4291,155.55,155.5,20.3563465]
[1727761459948,6.4291,155.55,155.5,19.07041308]
[1727761462142,6.4291,155.55,155.51,12.63961308]
[1727761462845,6.4284,155.56,155.52,13.92547817]
[1727761468241,6.4284,155.56,155.52,20.35537817]
[1727761468475,6.4284,155.56,155.53,1.28574473]
[1727761471365,6.4284,155.56,155.52,19.06951308]
[1727761473151,6.4284,155.56,155.51,19.06991308]
[1727761477253,6.4288,155.55,155.51,19.06991308]
[1727761477581,1.60727922,155.54,155.49,38.8933]
[1727761477876,6.43,155.52,155.49,22.816]
[1727761482483,6.43,155.52,155.49,24.10210556]
[1727761482681,6.43,155.52,155.49,36.74171864]
[1727761483066,23.776884,155.57,155.49,36.74171864]
[1727761483365,6.4296,155.53,155.49,24.10210556]
[1727761485485,6.4296,155.53,155.49,29.2472]
[1727761485692,6.4296,155.53,155.5,1.28609558]
[1727761486263,6.4296,155.53,155.5,13.92570866]
[1727761487083,6.4292,155.54,155.5,13.92570866]
[1727761488895,6.4292,155.54,155.5,12.63961308]
[1727761489277,6.4292,155.54,155.49,29.2472]
[1727761492192,6.4298,155.53,155.49,22.816]
[1727761497396,23.776884,155.56,155.49,22.816]
[1727761497605,6.4304,155.51,155.49,22.816]
[1727761499682,39.848384,155.56,155.49,35.45561308]
[1727761500004,6.4297,155.53,155.5,1.28607183]
[1727761504394,6.4297,155.53,155.49,35.45561308]
[1727761509385,1.60745722,155.55,155.49,22.816]
[1727761509584,6.4304,155.51,155.49,22.816]
[1727761510516,1.60745722,155.55,155.49,22.816]
[1727761510721,6.4308,155.5,155.49,22.816]
[1727761511033,6.4308,155.5,155.46,12.63961308]
[1727761512998,6.4308,155.5,155.46,19.07201308]
[1727761513926,6.4308,155.5,155.46,12.63961308]
[1727761515795,6.4308,155.5,155.46,6.4324]
[1727761516002,6.4308,155.5,155.46,19.07201308]
[1727761518925,16.0715,155.56,155.46,19.07201308]
[1727761519132,16.0715,155.56,155.45,22.6583]
[1727761519133,6.4301,155.52,155.48,12.63961308]
[1727761519307,6.4301,155.52,155.49,1.28610754]
[1727761523442,6.4304,155.51,155.49,1.28610754]
[1727761526831,16.0715,155.56,155.49,1.28610754]
[1727761527037,6.43,155.52,155.49,1.28610754]
[1727761527239,6.43,155.52,155.48,12.63961308]
[1727761527633,16.0715,155.56,155.49,1.28598842]
[1727761527840,6.4297,155.53,155.49,1.28598842]
[1727761528749,6.4297,155.53,155.49,24.16658842]
[1727761532252,6.4297,155.53,155.49,22.8806]
[1727761532438,6.4297,155.53,155.5,1.28595942]
[1727761532925,6.4297,155.53,155.49,22.8806]
[1727761536154,6.4297,155.53,155.49,35.52021308]
[1727761540454,1.60744801,155.55,155.49,22.8806]
[1727761540650,6.4308,155.5,155.49,22.8806]
[1727761540828,6.4308,155.5,155.46,16.0806]
[1727761541025,6.4308,155.5,155.47,7.77945195]
[1727761541248,6.4308,155.5,155.46,16.0806]
[1727761541455,6.4308,155.5,155.47,7.77965654]
[1727761541757,6.4308,155.5,155.46,35.15261308]
[1727761541933,6.4308,155.5,155.47,7.77964906]
[1727761542135,6.4308,155.5,155.46,35.15261308]
[1727761542341,6.4308,155.5,155.47,7.77984494]
[1727761542543,6.4308,155.5,155.46,35.15261308]
[1727761542745,6.4308,155.5,155.47,7.77984084]
[1727761542950,6.4308,155.5,155.46,35.15261308]
[1727761543259,6.4308,155.5,155.47,7.77983976]
[1727761543476,6.4308,155.5,155.46,35.15261308]
[1727761544256,16.0715,155.56,155.49,12.63961308]
[1727761544451,4.47143506,155.57,155.51,12.63961308]
[1727761544452,6.4292,155.54,155.51,12.63961308]
[1727761544757,6.4288,155.55,155.53,12.63961308]
[1727761545062,6.4288,155.55,155.54,1.28571722]
[1727761545465,16.0682,155.59,155.54,1.28571722]
[1727761545768,6.4285,155.56,155.54,1.28571722]
[1727761545931,4.46903921,155.62,155.56,15.8158]
[1727761546131,6.4271,155.59,155.57,12.63961308]
[1727761546336,6.4271,155.59,155.56,22.0516]
[1727761546766,6.4271,155.59,155.56,23.3370508]
[1727761547973,4.46884341,155.64,155.56,35.97666388]
[1727761548161,6.4266,155.61,155.56,35.97666388]
[1727761549769,1.11771891,155.64,155.56,35.97666388]
[1727761549965,6.4267,155.6,155.56,35.97666388]
[1727761554476,6.4267,155.6,155.57,12.63961308]
[1727761554656,6.4267,155.6,155.58,1.28530109]
[1727761556353,6.4267,155.6,155.56,34.69121308]
[1727761558375,6.4264,155.61,155.57,12.63961308]
[1727761558559,6.4264,155.61,155.56,50.76121308]
[1727761559457,6.4267,155.6,155.56,50.76121308]
[1727761560364,6.4255,155.63,155.58,6.4275]
[1727761560565,6.4255,155.63,155.59,1.28513728]
[1727761560885,6.4255,155.63,155.59,13.92475036]
[1727761561078,3.3511245,155.71,155.59,13.92475036]
[1727761561375,1.11743051,155.69,155.58,16.0681]
[1727761561585,1.60632448,155.68,155.58,16.0681]
[1727761561756,6.4259,155.62,155.58,16.0681]
[1727761562170,6.4255,155.63,155.58,16.0681]
[1727761562557,6.4255,155.63,155.58,28.70771308]
[1727761567391,6.4255,155.63,155.59,12.63961308]
[1727761570467,6.4255,155.63,155.6,13.92465105]
[1727761570686,6.4255,155.63,155.6,1.28503797]
[1727761574969,6.4255,155.63,155.59,12.63961308]
[1727761575169,6.4255,155.63,155.58,22.4955]
[1727761575394,6.4255,155.63,155.58,35.13511308]
[1727761579794,6.4255,155.63,155.59,1.28506808]
[1727761580297,6.4255,155.63,155.58,35.13511308]
[1727761584402,1.11743051,155.69,155.62,12.63961308]
[1727761584610,1.11743051,155.69,155.63,1.28479927]
[1727761584790,6.4238,155.67,155.63,1.28479927]
[1727761584990,16.0557,155.71,155.64,12.63961308]
[1727761585195,1.11918859,155.73,155.66,35.18111308]
[1727761585496,6.4227,155.7,155.67,1.28453331]
[1727761587904,6.4221,155.72,155.67,1.28453331]
[1727761588088,6.4221,155.72,155.68,12.63961308]
[1727761588285,16.0526,155.74,155.69,1.28440122]
[1727761588286,6.4222,155.71,155.69,1.28440122]
[1727761589416,6.4217,155.72,155.68,12.63961308]
[1727761589591,6.4217,155.72,155.69,1.28430423]
[1727761591513,6.4217,155.72,155.68,12.63961308]
[1727761595397,6.4217,155.72,155.69,1.28431906]
[1727761596304,6.4217,155.72,155.68,12.63961308]
[1727761596614,6.4217,155.72,155.69,1.28431556]
[1727761596794,6.4217,155.72,155.68,12.63961308]
[1727761598519,6.4217,155.72,155.69,13.9239178]
[1727761600503,6.4217,155.72,155.69,12.63961308]
[1727761601307,6.4217,155.72,155.68,12.63961308]
[1727761607035,6.4214,155.73,155.69,13.92389046]
[1727761607206,6.4214,155.73,155.69,12.63961308]
[1727761607930,6.4214,155.73,155.69,19.06251308]
[1727761608920,6.4214,155.73,155.7,12.63961308]
[1727761609132,6.4214,155.73,155.7,13.92379957]
[1727761610737,6.421,155.74,155.7,12.63961308]
[1727761611436,6.421,155.74,155.71,1.28409613]
[1727761615345,6.4206,155.75,155.71,1.28409613]
[1727761620527,6.4206,155.75,155.7,19.06211308]
[1727761621455,6.4214,155.73,155.68,35.12041308]
[1727761623255,6.4214,155.73,155.69,6.4229]
[1727761624254,6.421,155.74,155.7,1.2841983]
[1727761625327,6.4205,155.75,155.71,41.84841308]
[1727761625531,6.4205,155.75,155.72,1.28404632]
[1727761625956,23.776884,155.79,155.72,1.28404632]
[1727761626254,6.4201,155.76,155.72,1.28404632]
[1727761628560,6.4201,155.76,155.71,41.84841308]
[1727761628952,6.4206,155.75,155.71,22.7867]
[1727761629255,1.60503793,155.79,155.71,22.7867]
[1727761629444,6.4213,155.73,155.68,6.4233]
[1727761631155,6.4213,155.73,155.69,6.4229]
[1727761632356,6.4213,155.73,155.69,19.06251308]
[1727761633053,39.825884,155.78,155.69,19.06251308]
[1727761633260,6.4209,155.74,155.7,20.34626764]
[1727761633638,6.4209,155.74,155.7,19.06211308]
[1727761634249,6.4209,155.74,155.71,1.28416926]
[1727761634745,6.4209,155.74,155.7,19.06211308]
[1727761634947,6.4205,155.75,155.7,19.06211308]
[1727761635857,6.4205,155.75,155.7,12.63961308]
[1727761636060,6.4205,155.75,155.71,6.4221]
[1727761636269,6.4201,155.76,155.71,6.4221]
[1727761636961,6.4198,155.77,155.72,42.59942808]
[1727761638038,6.4198,155.77,155.74,12.63961308]
[1727761638252,6.4193,155.78,155.75,1.28393933]
[1727761638563,6.4193,155.79,155.75,1.28393933]
[1727761640769,6.4193,155.79,155.74,19.06041308]
[1727761642257,6.4193,155.79,155.75,1.28381628]
[1727761642458,6.4193,155.79,155.74,19.06041308]
[1727761643164,6.4193,155.78,155.74,19.06041308]
[1727761645151,6.4193,155.78,155.75,1.28382855]
[1727761645571,6.4193,155.78,155.74,19.06041308]
[1727761645870,6.4193,155.78,155.75,1.28383127]
[1727761646071,6.4193,155.78,155.74,19.06041308]
[1727761647772,6.4193,155.78,155.72,34.89371308]
[1727761647962,6.4197,155.77,155.73,6.4213]
[1727761648147,6.4197,155.77,155.72,34.89371308]
[1727761648346,6.4197,155.77,155.72,41.31531308]
[1727761649556,6.4197,155.77,155.73,6.4213]
[1727761652985,6.4197,155.77,155.74,12.63961308]
[1727761653363,6.4197,155.77,155.75,1.28391433]
[1727761653787,6.4193,155.78,155.75,1.28391433]
[1727761655473,6.4189,155.79,155.75,1.28391433]
[1727761656995,6.4189,155.79,155.74,19.06051308]
[1727761657379,6.4189,155.79,155.74,6.4209]
[1727761660595,6.4201,155.77,155.72,28.6758]
[1727761661616,6.4201,155.77,155.73,12.63961308]
[1727761664175,1.60489516,155.81,155.72,22.2541]
[1727761664375,16.0473,155.79,155.72,22.2541]
[1727761664597,1.60510672,155.78,155.72,22.2541]
[1727761664801,6.4201,155.76,155.72,22.2541]
[1727761666110,1.60510672,155.78,155.72,22.2541]
[1727761666111,6.4208,155.75,155.72,22.2541]
[1727761666314,6.421,155.74,155.72,22.2541]
[1727761667389,6.4205,155.76,155.72,22.2541]
[1727761667597,6.4205,155.76,155.73,1.28405518]
[1727761670409,6.4205,155.76,155.72,22.2541]
[1727761672591,6.4206,155.75,155.72,22.2541]
[1727761672917,6.421,155.74,155.72,22.2541]
[1727761673091,6.4205,155.75,155.72,22.2541]
[1727761676593,6.4205,155.75,155.73,1.28407295]
[1727761677617,6.4197,155.77,155.73,12.63961308]
[1727761677926,6.4193,155.78,155.74,1.2840768]
[1727761681327,6.4188,155.8,155.74,1.2840768]
[1727761681627,6.4188,155.8,155.76,21.311]
[1727761681811,6.4188,155.8,155.77,1.28373021]
[1727761682409,6.4188,155.8,155.76,27.731]
[1727761682804,6.4181,155.81,155.76,27.731]
[1727761683629,16.8757549,155.85,155.77,7.70326166]
[1727761683828,6.4175,155.83,155.77,7.70326166]
[1727761684217,6.4175,155.83,155.78,19.05851308]
[1727761684411,6.4175,155.83,155.79,1.28337487]
[1727761684611,6.4175,155.83,155.78,19.05851308]
[1727761689639,6.4175,155.83,155.79,1.283379]
[1727761690044,6.4175,155.83,155.78,19.05851308]
[1727761690252,6.4175,155.83,155.79,1.28338062]
[1727761690545,6.4175,155.83,155.78,19.05851308]
[1727761691840,6.4175,155.83,155.79,6.4188]
[1727761692020,6.4175,155.83,155.8,21.3108]
[1727761694030,6.4176,155.82,155.8,21.3108]
[1727761705834,6.4173,155.83,155.81,1.28352898]
[1727761708938,6.4173,155.83,155.8,21.3108]
[1727761709436,6.4173,155.83,155.81,1.28343838]
[1727761709664,6.4173,155.83,155.8,21.3108]
[1727761710762,6.4173,155.83,155.81,1.28344185]
[1727761711467,6.4173,155.83,155.8,21.3108]
[1727761721070,6.4177,155.82,155.8,21.3108]
[1727761721863,6.4177,155.82,155.77,35.10801308]
[1727761722049,6.4177,155.82,155.77,22.4684]
[1727761723375,6.4177,155.82,155.78,1.28352689]
[1727761724254,6.4177,155.82,155.77,35.10801308]
[1727761725175,6.4177,155.82,155.78,7.7526471]
[1727761725374,6.4177,155.82,155.77,35.10801308]
[1727761725881,6.4177,155.82,155.78,7.7526471]
[1727761726054,6.4177,155.82,155.77,35.10801308]
[1727761726261,6.4177,155.82,155.78,7.75286717]
[1727761726480,6.4177,155.82,155.77,35.10801308]
[1727761726658,6.4177,155.82,155.78,7.75286717]
[1727761726860,6.4177,155.82,155.77,35.10801308]